fUSD/lending_fUSD_20260703
["ID","MTS","AMOUNT","RATE_DAILY","PERIOD"]
[426954738,1783056641000,-500.0,0.00026099,2]
[426954732,1783056641000,-500.0,0.00026099,2]
[426954734,1783056641000,-500.0,0.00026099,2]
[426954733,1783056641000,-500.0,0.00026099,2]
[426954740,1783056641000,-500.0,0.00026099,2]
[426954737,1783056641000,-500.0,0.00026099,2]
[426954736,1783056641000,-368.31719129,0.00026099,2]
[426954806,1783056642000,-500.0,0.00026153,2]
[426954805,1783056642000,-500.0,0.00026153,2]
[426954807,1783056642000,-487.03054447,0.00026153,2]
[426954812,1783056642000,-500.0,0.00026153,2]
[426954815,1783056642000,-500.0,0.00026153,2]
[426954808,1783056642000,-500.0,0.00026153,2]
[426954814,1783056642000,-500.0,0.00026153,2]
[426954809,1783056642000,-500.0,0.00026153,2]
[426954813,1783056642000,-500.0,0.00026153,2]
[426954811,1783056642000,-500.0,0.00026153,2]
[426954825,1783056642000,-306.39493667,0.000263,2]
[426954817,1783056642000,-352.70199866,0.0002616,2]
[426954827,1783056642000,-150.0,0.00026306,7]
[426954818,1783056642000,-397.49603315,0.0002616,2]
[426954816,1783056642000,-532.87357416,0.00026153,2]
[426954823,1783056642000,-562.98488672,0.000263,2]
[426954820,1783056642000,-192.37644422,0.0002616,2]
[426954824,1783056642000,-7995.11681738,0.000263,2]
[426954821,1783056642000,-150.0,0.00026193,7]
[426954819,1783056642000,-201.6390034,0.0002616,2]
[426954822,1783056642000,-624.96805245,0.00026204,2]
[426954810,1783056642000,-500.0,0.00026153,2]
[426954804,1783056642000,-151.0,0.00026151,7]
[426954788,1783056642000,-851.483759,0.000261,2]
[426954800,1783056642000,-620.329416,0.000261,2]
[426954780,1783056642000,-151.0,0.000261,2]
[426954781,1783056642000,-251.638202,0.000261,2]
[426954790,1783056642000,-851.483759,0.000261,2]
[426954792,1783056642000,-151.0,0.000261,2]
[426954786,1783056642000,-251.638202,0.000261,2]
[426954784,1783056642000,-251.638202,0.000261,2]
[426954782,1783056642000,-187.763118,0.000261,2]
[426954783,1783056642000,-251.638202,0.000261,2]
[426954787,1783056642000,-851.483759,0.000261,2]
[426954789,1783056642000,-851.483759,0.000261,2]
[426954793,1783056642000,-254.89282,0.000261,2]
[426954785,1783056642000,-151.0,0.000261,2]
[426954791,1783056642000,-151.0,0.000261,2]
[426954795,1783056642000,-254.89282,0.000261,2]
[426954794,1783056642000,-254.89282,0.000261,2]
[426954801,1783056642000,-151.0,0.000261,2]
[426954798,1783056642000,-620.329416,0.000261,2]
[426954803,1783056642000,-151.0,0.00026151,7]
[426954797,1783056642000,-620.329416,0.000261,2]
[426954796,1783056642000,-254.89282,0.000261,2]
[426954799,1783056642000,-620.329416,0.000261,2]
[426954802,1783056642000,-278.77426521,0.00026128,2]
[426954826,1783056642000,-175.565002,0.00026301,2]
[426954856,1783056642000,-500.0,0.00026799,2]
[426954839,1783056642000,-7995.11681738,0.000266,2]
[426954852,1783056642000,-6011.95,0.00026772,2]
[426954859,1783056642000,-500.0,0.00026799,2]
[426954858,1783056642000,-500.0,0.00026799,2]
[426954862,1783056642000,-494.16095271,0.00026799,2]
[426954860,1783056642000,-500.0,0.00026799,2]
[426954863,1783056642000,-500.0,0.00026799,2]
[426954865,1783056642000,-500.0,0.00026799,2]
[426954870,1783056642000,-300.0,0.00026799,10]
[426954866,1783056642000,-500.0,0.00026799,2]
[426954874,1783056642000,-309385.63096736,0.000268,2]
[426954864,1783056642000,-500.0,0.00026799,2]
[426954869,1783056642000,-445.79639571,0.00026799,2]
[426954867,1783056642000,-567.99677537,0.00026799,2]
[426954868,1783056642000,-500.0,0.00026799,2]
[426954872,1783056642000,-300.0,0.00026799,10]
[426954871,1783056642000,-300.0,0.00026799,10]
[426954873,1783056642000,-3097.0,0.00026799,5]
[426954878,1783056642000,-151.26763345,0.00026064,2]
[426954877,1783056642000,-195.69673936,0.000254,2]
[426954880,1783056642000,-263.5519032,0.00026084,2]
[426954828,1783056642000,-200.0,0.00026351,2]
[426954861,1783056642000,-500.0,0.00026799,2]
[426954857,1783056642000,-500.0,0.00026799,2]
[426954879,1783056642000,-494.29876719,0.00026084,2]
[426954853,1783056642000,-151.0,0.00026796,7]
[426954837,1783056642000,-150.55273785,0.00026598,4]
[426954854,1783056642000,-151.0,0.00026797,7]
[426954831,1783056642000,-150.0,0.00026418,7]
[426954829,1783056642000,-939.39433039,0.00026392,2]
[426954835,1783056642000,-150.0,0.00026554,7]
[426954830,1783056642000,-150.0,0.00026418,7]
[426954832,1783056642000,-150.0,0.00026418,7]
[426954834,1783056642000,-150.0,0.00026531,7]
[426954838,1783056642000,-562.98488672,0.000266,2]
[426954833,1783056642000,-269.40404778,0.000265,2]
[426954836,1783056642000,-150.0,0.00026554,7]
[426954841,1783056642000,-200.0,0.00026614,2]
[426954842,1783056642000,-150.0,0.00026641,2]
[426954843,1783056642000,-150.0,0.00026644,7]
[426954847,1783056642000,-502.4845754,0.00026698,2]
[426954844,1783056642000,-167.21602736,0.00026666,2]
[426954845,1783056642000,-584.82111809,0.00026698,2]
[426954846,1783056642000,-500.0,0.00026698,2]
[426954848,1783056642000,-800.0,0.000267,9]
[426954850,1783056642000,-150.0,0.00026757,7]
[426954849,1783056642000,-939.39433039,0.000267,2]
[426954851,1783056642000,-150.0,0.00026757,7]
[426954840,1783056642000,-306.39493667,0.000266,2]
[426954881,1783056643000,-277.48251953,0.00025609,2]
[426954884,1783056643000,-602.8079,0.00025609,2]
[426954882,1783056643000,-1243.16855151,0.00025609,2]
[426954883,1783056643000,-1255.24886075,0.00025609,2]
[426954889,1783056646000,-1016.81993484,0.00025609,2]
[426954933,1783057834000,-33621.85602324,0.00021717,120]
[426954936,1783057834000,-537.74204796,0.00021718,2]
[426954935,1783057834000,-28705.01751665,0.00021717,120]
[426954931,1783057834000,-12007.77476011,0.00021717,120]
[426954938,1783057834000,-1214.85308233,0.00021718,2]
[426954939,1783057834000,-151.0,0.00021815,2]
[426954941,1783057834000,-500.0,0.00021817,2]
[426954940,1783057834000,-500.0,0.00021817,2]
[426954944,1783057834000,-161.04832905,0.00021818,120]
[426954942,1783057834000,-500.0,0.00021817,2]
[426954948,1783057834000,-150.0,0.00021918,2]
[426954947,1783057834000,-500.0,0.00021917,2]
[426954949,1783057834000,-500.0,0.00021959,2]
[426954945,1783057834000,-500.0,0.00021868,7]
[426954946,1783057834000,-939.266,0.00021868,7]
[426954928,1783057834000,-1000.0,0.00021716,2]
[426954943,1783057834000,-500.0,0.00021817,2]
[426954927,1783057834000,-299.99,0.00021709,7]
[426954912,1783057834000,-1208.85690123,0.000209,30]
[426954920,1783057834000,-225.63,0.00021709,2]
[426954950,1783057834000,-500.0,0.00021959,2]
[426954907,1783057834000,-7985.64481105,0.0002,2]
[426954913,1783057834000,-264.79,0.00021198,2]
[426954915,1783057834000,-150.0,0.00021262,2]
[426954909,1783057834000,-500.0,0.00020225,2]
[426954908,1783057834000,-600.0,0.00020225,2]
[426954914,1783057834000,-2443.66,0.00021243,2]
[426954910,1783057834000,-354.62771769,0.0002045,2]
[426954911,1783057834000,-386.08746836,0.00020783,2]
[426954916,1783057834000,-331.98359014,0.00021304,2]
[426954917,1783057834000,-167.21602736,0.00021709,2]
[426954918,1783057834000,-9999.99,0.00021709,2]
[426954919,1783057834000,-150.99,0.00021709,2]
[426954925,1783057834000,-9999.99,0.00021709,2]
[426954921,1783057834000,-499.99,0.00021709,2]
[426954924,1783057834000,-9999.99,0.00021709,2]
[426954922,1783057834000,-6706.88,0.00021709,2]
[426954923,1783057834000,-9999.99,0.00021709,2]
[426954954,1783057834000,-500.0,0.00021959,2]
[426954937,1783057834000,-688.1355804,0.00021718,2]
[426954952,1783057834000,-500.0,0.00021959,2]
[426954978,1783057834000,-514.65305511,0.00021959,2]
[426954977,1783057834000,-500.0,0.00021959,2]
[426954975,1783057834000,-500.0,0.00021959,2]
[426954976,1783057834000,-500.0,0.00021959,2]
[426954979,1783057834000,-500.0,0.00021959,2]
[426954981,1783057834000,-500.0,0.00021959,2]
[426954980,1783057834000,-500.0,0.00021959,2]
[426954988,1783057834000,-500.0,0.00021959,2]
[426954983,1783057834000,-500.0,0.00021959,2]
[426954989,1783057834000,-500.0,0.00021959,2]
[426954986,1783057834000,-500.0,0.00021959,2]
[426954987,1783057834000,-500.0,0.00021959,2]
[426954984,1783057834000,-500.0,0.00021959,2]
[426954985,1783057834000,-500.0,0.00021959,2]
[426954990,1783057834000,-500.0,0.00021959,2]
[426954991,1783057834000,-500.0,0.00021959,2]
[426954955,1783057834000,-606.85490655,0.00021959,2]
[426954972,1783057834000,-500.0,0.00021959,2]
[426954974,1783057834000,-500.0,0.00021959,2]
[426954982,1783057834000,-500.0,0.00021959,2]
[426954965,1783057834000,-500.0,0.00021959,2]
[426954953,1783057834000,-500.0,0.00021959,2]
[426954951,1783057834000,-500.0,0.00021959,2]
[426954973,1783057834000,-500.0,0.00021959,2]
[426954964,1783057834000,-500.0,0.00021959,2]
[426954966,1783057834000,-500.0,0.00021959,2]
[426954971,1783057834000,-500.0,0.00021959,2]
[426954967,1783057834000,-500.0,0.00021959,2]
[426954968,1783057834000,-500.0,0.00021959,2]
[426954969,1783057834000,-206.14519808,0.00021959,2]
[426954956,1783057834000,-500.0,0.00021959,2]
[426954960,1783057834000,-500.0,0.00021959,2]
[426954962,1783057834000,-500.0,0.00021959,2]
[426954961,1783057834000,-500.0,0.00021959,2]
[426954992,1783057834000,-494.72651384,0.00021959,2]
[426954959,1783057834000,-500.0,0.00021959,2]
[426954958,1783057834000,-500.0,0.00021959,2]
[426954957,1783057834000,-500.0,0.00021959,2]
[426954963,1783057834000,-500.0,0.00021959,2]
[426954970,1783057834000,-500.0,0.00021959,2]
[426955026,1783057838000,-167.04,0.00021965,2]
[426955028,1783057838000,-4064.52870924,0.00022,120]
[426955027,1783057838000,-600.0,0.00022,2]
[426955022,1783057838000,-500.0,0.00021959,2]
[426955025,1783057838000,-5000.0,0.0002196,2]
[426955023,1783057838000,-500.0,0.00021959,2]
[426955019,1783057838000,-500.0,0.00021959,2]
[426955021,1783057838000,-500.0,0.00021959,2]
[426955018,1783057838000,-500.0,0.00021959,2]
[426955016,1783057838000,-500.0,0.00021959,2]
[426955017,1783057838000,-500.0,0.00021959,2]
[426955015,1783057838000,-500.0,0.00021959,2]
[426955014,1783057838000,-5.27348616,0.00021959,2]
[426955030,1783057838000,-600.0,0.00022,2]
[426955020,1783057838000,-500.0,0.00021959,2]
[426955029,1783057838000,-195.0,0.00022,2]
[426955024,1783057838000,-500.0,0.00021959,2]
[426955032,1783057838000,-500.0,0.00022,2]
[426955048,1783057838000,-4730.98108796,0.00023,2]
[426955047,1783057838000,-1650.20695047,0.00023,2]
[426955031,1783057838000,-168.37848349,0.00022,30]
[426955045,1783057838000,-343.73274056,0.00022978,2]
[426955044,1783057838000,-301.06721521,0.00022978,2]
[426955042,1783057838000,-1214.8530823,0.00022825,2]
[426955043,1783057838000,-200.0,0.00022938,2]
[426955041,1783057838000,-151.77330633,0.00022731,2]
[426955046,1783057838000,-1399.492688,0.00023,2]
[426955038,1783057838000,-537.74204795,0.00022535,2]
[426955040,1783057838000,-185.32,0.00022721,2]
[426955037,1783057838000,-384.1,0.00022525,2]
[426955039,1783057838000,-6326.45199395,0.00022565,2]
[426955034,1783057838000,-1469.71,0.00022266,2]
[426955035,1783057838000,-1214.8530823,0.00022272,2]
[426955033,1783057838000,-600.0,0.00022,2]
[426955036,1783057838000,-3414.83,0.00022428,2]
[426955073,1783057840000,-1003.03830236,0.00023,2]
[426955074,1783057840000,-660.33128176,0.00023,2]
[426955075,1783057840000,-622.67414207,0.00023,2]
[426955077,1783057840000,-273.1454,0.00023,2]
[426955076,1783057840000,-450.40283817,0.00023,2]
[426955087,1783057843000,-881.0,0.00023,2]
[426955086,1783057843000,-520.55437169,0.00023,2]
[426955088,1783057846000,-1263.66495002,0.00023,2]
[426955107,1783058905000,-67.01731543,0.00014713,2]
[426955106,1783058905000,-600.0,0.00014711,2]
[426955105,1783058905000,-379.489511,0.0001471,2]
[426955111,1783058955000,-249.80984351,0.00014841,2]
[426955108,1783058955000,-386.01192447,0.00014713,2]
[426955110,1783058955000,-250.0,0.00014716,2]
[426955109,1783058955000,-600.0,0.00014714,2]
[426955153,1783059032000,-8221.92,0.00018297,2]
[426955145,1783059032000,-904.65,0.00017758,2]
[426955144,1783059032000,-9999.99,0.00017758,2]
[426955147,1783059032000,-4999.99,0.00017758,2]
[426955151,1783059032000,-500.0,0.00017808,2]
[426955141,1783059032000,-2370.89,0.00017758,2]
[426955139,1783059032000,-1779.43730017,0.00017758,2]
[426955136,1783059032000,-71.90027516,0.00017645,2]
[426955137,1783059032000,-150.99,0.00017728,2]
[426955138,1783059032000,-1081.04,0.00017728,2]
[426955135,1783059032000,-196.37972484,0.00017645,2]
[426955134,1783059032000,-226.45261896,0.00017598,2]
[426955133,1783059032000,-212.38154713,0.00017296,2]
[426955131,1783059032000,-38.04261318,0.00017296,2]
[426955132,1783059032000,-684.57583969,0.00017296,2]
[426955127,1783059032000,-600.0,0.00016184,2]
[426955125,1783059032000,-429.13853017,0.00016181,2]
[426955129,1783059032000,-146.27836308,0.00016325,2]
[426955128,1783059032000,-193.47096528,0.00016325,2]
[426955124,1783059032000,-2213.49388682,0.00016181,2]
[426955126,1783059032000,-170.86146983,0.00016181,2]
[426955119,1783059032000,-361.72,0.00015446,2]
[426955123,1783059032000,-1786.50611318,0.00016181,2]
[426955121,1783059032000,-523.54886733,0.0001618,2]
[426955122,1783059032000,-177.960468,0.00016181,2]
[426955118,1783059032000,-226.45261898,0.00015345,2]
[426955120,1783059032000,-26.45113267,0.0001618,2]
[426955117,1783059032000,-350.19015649,0.00014841,2]
[426955155,1783059032000,-3191.55,0.0001833,2]
[426955130,1783059032000,-453.72163692,0.00016325,2]
[426955142,1783059032000,-9999.99,0.00017758,2]
[426955190,1783059032000,-282.05641106,0.00019948,2]
[426955140,1783059032000,-8220.55269983,0.00017758,2]
[426955191,1783059032000,-622.98387851,0.00019948,2]
[426955192,1783059032000,-500.0,0.00019948,2]
[426955193,1783059032000,-500.0,0.00019948,2]
[426955187,1783059032000,-187.16,0.00019743,2]
[426955185,1783059032000,-3339.75,0.000197,2]
[426955186,1783059032000,-602.52888907,0.00019713,2]
[426955182,1783059032000,-150.01,0.00019355,7]
[426955181,1783059032000,-3339.75,0.00019231,2]
[426955183,1783059032000,-368.71907251,0.00019355,2]
[426955179,1783059032000,-181.4,0.00019153,2]
[426955180,1783059032000,-7937.48,0.00019223,2]
[426955184,1783059032000,-1739.96,0.0001947,2]
[426955177,1783059032000,-500.0,0.00019081,2]
[426955188,1783059032000,-642.0,0.00019772,2]
[426955189,1783059032000,-226.45261896,0.0001985,2]
[426955149,1783059032000,-808.119,0.00017758,2]
[426955174,1783059032000,-300.0,0.00019081,2]
[426955178,1783059032000,-171.58579051,0.00019081,2]
[426955143,1783059032000,-9999.99,0.00017758,2]
[426955157,1783059032000,-223.86193017,0.00018478,3]
[426955161,1783059032000,-223.86193017,0.00018699,2]
[426955164,1783059032000,-7580.53,0.00018802,2]
[426955163,1783059032000,-3339.75,0.00018762,2]
[426955162,1783059032000,-151.53,0.00018753,2]
[426955160,1783059032000,-2438.87,0.00018671,2]
[426955168,1783059032000,-150.0,0.00018855,2]
[426955170,1783059032000,-3769.18,0.00018926,2]
[426955166,1783059032000,-2543.05,0.00018818,2]
[426955176,1783059032000,-200.0,0.00019081,2]
[426955172,1783059032000,-200.0,0.0001908,2]
[426955158,1783059032000,-1589.0,0.00018494,2]
[426955222,1783059033000,-500.0,0.00019948,2]
[426955219,1783059033000,-500.0,0.00019948,2]
[426955220,1783059033000,-500.0,0.00019948,2]
[426955221,1783059033000,-500.0,0.00019948,2]
[426955225,1783059033000,-500.0,0.00019948,2]
[426955226,1783059033000,-500.0,0.00019948,2]
[426955224,1783059033000,-500.0,0.00019948,2]
[426955223,1783059033000,-500.0,0.00019948,2]
[426955227,1783059033000,-500.0,0.00019948,2]
[426955233,1783059033000,-500.0,0.00019948,2]
[426955229,1783059033000,-500.0,0.00019948,2]
[426955230,1783059033000,-500.0,0.00019948,2]
[426955231,1783059033000,-500.0,0.00019948,2]
[426955237,1783059033000,-11491.17,0.00019958,2]
[426955235,1783059033000,-30896.74280253,0.00019949,2]
[426955217,1783059033000,-500.0,0.00019948,2]
[426955234,1783059033000,-317.98059603,0.00019948,2]
[426955238,1783059033000,-2947.03872385,0.00020052,2]
[426955232,1783059033000,-500.0,0.00019948,2]
[426955228,1783059033000,-500.0,0.00019948,2]
[426955218,1783059033000,-500.0,0.00019948,2]
[426955212,1783059033000,-500.0,0.00019948,2]
[426955214,1783059033000,-500.0,0.00019948,2]
[426955201,1783059033000,-500.0,0.00019948,2]
[426955196,1783059033000,-500.0,0.00019948,2]
[426955195,1783059033000,-500.0,0.00019948,2]
[426955198,1783059033000,-500.0,0.00019948,2]
[426955202,1783059033000,-500.0,0.00019948,2]
[426955194,1783059033000,-500.0,0.00019948,2]
[426955197,1783059033000,-500.0,0.00019948,2]
[426955236,1783059033000,-500.0,0.0001995,2]
[426955199,1783059033000,-500.0,0.00019948,2]
[426955216,1783059033000,-500.0,0.00019948,2]
[426955203,1783059033000,-500.0,0.00019948,2]
[426955215,1783059033000,-500.0,0.00019948,2]
[426955204,1783059033000,-500.0,0.00019948,2]
[426955206,1783059033000,-500.0,0.00019948,2]
[426955207,1783059033000,-500.0,0.00019948,2]
[426955213,1783059033000,-500.0,0.00019948,2]
[426955211,1783059033000,-500.0,0.00019948,2]
[426955210,1783059033000,-500.0,0.00019948,2]
[426955208,1783059033000,-500.0,0.00019948,2]
[426955209,1783059033000,-500.0,0.00019948,2]
[426955205,1783059033000,-500.0,0.00019948,2]
[426955200,1783059033000,-500.0,0.00019948,2]
[426955239,1783059033000,-500.0,0.00020067,2]
[426955244,1783059033000,-478.72305457,0.00020224,2]
[426955270,1783059033000,-910.51515761,0.00021143,2]
[426955269,1783059033000,-150.0,0.00021,2]
[426955268,1783059033000,-4381.69124641,0.0002089,2]
[426955266,1783059033000,-3339.75,0.00020639,2]
[426955273,1783059033000,-339.21486322,0.00019948,2]
[426955271,1783059033000,-12672.81034116,0.00021151,2]
[426955274,1783059033000,-160.78513678,0.00019948,2]
[426955272,1783059033000,-500.0,0.00019948,2]
[426955275,1783059033000,-500.0,0.00019948,2]
[426955267,1783059033000,-2947.03872378,0.00020791,2]
[426955276,1783059033000,-351.75965884,0.00021151,2]
[426955279,1783059033000,-500.0,0.00021205,2]
[426955284,1783059033000,-335.78789689,0.00021616,2]
[426955240,1783059033000,-250.50660075,0.00020069,2]
[426955278,1783059033000,-996.59,0.00021197,2]
[426955285,1783059033000,-472.33076835,0.00021616,2]
[426955283,1783059033000,-164.21210311,0.00021616,2]
[426955282,1783059033000,-151.0,0.00021614,2]
[426955280,1783059033000,-2947.03872378,0.00021529,2]
[426955286,1783059033000,-457.35471932,0.00019948,2]
[426955277,1783059033000,-402.12804164,0.00021165,2]
[426955265,1783059033000,-1999.01,0.00020573,2]
[426955281,1783059033000,-151.0,0.00021614,2]
[426955263,1783059033000,-500.0,0.00019948,2]
[426955264,1783059033000,-1023.32909946,0.00020548,2]
[426955243,1783059033000,-152.77,0.0002022,2]
[426955242,1783059033000,-3339.75,0.00020169,2]
[426955252,1783059033000,-158.95309332,0.00020483,2]
[426955241,1783059033000,-394.41,0.00020153,2]
[426955248,1783059033000,-150.0,0.00020238,2]
[426955247,1783059033000,-150.0,0.00020238,2]
[426955250,1783059033000,-194.71,0.00020377,2]
[426955246,1783059033000,-279.32655604,0.00020238,2]
[426955251,1783059033000,-910.51515761,0.00020448,2]
[426955245,1783059033000,-284.54162325,0.00020238,2]
[426955253,1783059033000,-589.83319259,0.00020512,2]
[426955249,1783059033000,-207.42226057,0.00020238,2]
[426955261,1783059033000,-134110.74,0.00020513,2]
[426955262,1783059033000,-8962.11090054,0.00020548,2]
[426955260,1783059033000,-500.0,0.00020512,2]
[426955259,1783059033000,-500.0,0.00020512,2]
[426955254,1783059033000,-290.80166958,0.00020512,2]
[426955257,1783059033000,-408.19182842,0.00020512,2]
[426955256,1783059033000,-279.70234294,0.00020512,2]
[426955255,1783059033000,-500.0,0.00020512,2]
[426955258,1783059033000,-500.0,0.00020512,2]
[426955311,1783059038000,-500.0,0.00021616,2]
[426955312,1783059038000,-500.0,0.00021616,2]
[426955315,1783059038000,-1175.91847033,0.00021616,5]
[426955316,1783059038000,-500.0,0.00021616,2]
[426955313,1783059038000,-500.0,0.00021616,2]
[426955314,1783059038000,-500.0,0.00021616,2]
[426955318,1783059038000,-502.28695598,0.00021616,2]
[426955317,1783059038000,-500.0,0.00021616,2]
[426955322,1783059038000,-500.0,0.00021616,2]
[426955320,1783059038000,-500.0,0.00021616,2]
[426955319,1783059038000,-500.0,0.00021616,2]
[426955323,1783059038000,-500.0,0.00021616,2]
[426955308,1783059038000,-27.66923165,0.00021616,2]
[426955321,1783059038000,-500.0,0.00021616,2]
[426955309,1783059038000,-518.30059061,0.00021616,2]
[426955296,1783059038000,-500.0,0.00019948,2]
[426955305,1783059038000,-500.0,0.00019948,2]
[426955327,1783059038000,-500.0,0.00021616,2]
[426955292,1783059038000,-42.64528068,0.00019948,2]
[426955297,1783059038000,-500.0,0.00019948,2]
[426955298,1783059038000,-500.0,0.00019948,2]
[426955294,1783059038000,-500.0,0.00019948,2]
[426955295,1783059038000,-500.0,0.00019948,2]
[426955306,1783059038000,-350.0,0.00019948,2]
[426955299,1783059038000,-500.0,0.00019948,2]
[426955302,1783059038000,-500.0,0.00019948,2]
[426955303,1783059038000,-500.0,0.00019948,2]
[426955304,1783059038000,-500.0,0.00019948,2]
[426955301,1783059038000,-500.0,0.00019948,2]
[426955310,1783059038000,-1036.77871568,0.00021616,5]
[426955307,1783059038000,-500.0,0.00019948,2]
[426955300,1783059038000,-500.0,0.00019948,2]
[426955324,1783059038000,-500.0,0.00021616,2]
[426955293,1783059038000,-500.0,0.00019948,2]
[426955326,1783059038000,-500.0,0.00021616,2]
[426955343,1783059038000,-254.89282,0.00021617,2]
[426955346,1783059038000,-254.89282,0.00021617,2]
[426955349,1783059038000,-620.329416,0.00021617,2]
[426955354,1783059038000,-500.0,0.00021716,2]
[426955351,1783059038000,-620.329416,0.00021617,2]
[426955362,1783059038000,-2000.0,0.00021717,2]
[426955345,1783059038000,-620.329416,0.00021617,2]
[426955363,1783059038000,-500.0,0.00021817,2]
[426955356,1783059038000,-500.0,0.00021716,2]
[426955361,1783059038000,-33366.7554,0.00021717,2]
[426955360,1783059038000,-500.0,0.00021716,2]
[426955357,1783059038000,-500.0,0.00021716,2]
[426955358,1783059038000,-500.0,0.00021716,2]
[426955328,1783059038000,-151.0,0.00021617,2]
[426955359,1783059038000,-500.0,0.00021716,2]
[426955342,1783059038000,-151.0,0.00021617,2]
[426955352,1783059038000,-151.0,0.00021714,2]
[426955341,1783059038000,-151.0,0.00021617,2]
[426955344,1783059038000,-254.89282,0.00021617,2]
[426955329,1783059038000,-151.0,0.00021617,2]
[426955330,1783059038000,-151.0,0.00021617,2]
[426955331,1783059038000,-1047.253721,0.00021617,2]
[426955333,1783059038000,-1047.253721,0.00021617,2]
[426955325,1783059038000,-500.0,0.00021616,2]
[426955332,1783059038000,-1047.253721,0.00021617,2]
[426955335,1783059038000,-151.0,0.00021617,2]
[426955337,1783059038000,-892.414534,0.00021617,2]
[426955340,1783059038000,-892.414534,0.00021617,2]
[426955336,1783059038000,-151.0,0.00021617,2]
[426955348,1783059038000,-254.89282,0.00021617,2]
[426955347,1783059038000,-620.329416,0.00021617,2]
[426955338,1783059038000,-892.414534,0.00021617,2]
[426955334,1783059038000,-1047.253721,0.00021617,2]
[426955339,1783059038000,-892.414534,0.00021617,2]
[426955404,1783059039000,-1599.494872,0.00023,2]
[426955411,1783059039000,-150.55273785,0.00023,2]
[426955407,1783059039000,-150.0,0.00023,2]
[426955406,1783059039000,-79.0923656,0.00023,2]
[426955405,1783059039000,-4730.98108796,0.00023,2]
[426955398,1783059039000,-465.76,0.00022466,2]
[426955403,1783059039000,-828.4500075,0.00023,2]
[426955399,1783059039000,-910.51515761,0.00022532,2]
[426955409,1783059039000,-200.0,0.00023,2]
[426955401,1783059039000,-383.58543201,0.00022976,2]
[426955402,1783059039000,-30748.38888851,0.00023,2]
[426955408,1783059039000,-152.0,0.00023,2]
[426955417,1783059039000,-420.0,0.00023099,15]
[426955412,1783059039000,-200.0,0.00023,2]
[426955414,1783059039000,-151.0,0.00023,2]
[426955416,1783059039000,-150.0,0.00023014,2]
[426955418,1783059039000,-1999.01,0.00023145,2]
[426955415,1783059039000,-2947.03872378,0.00023007,2]
[426955426,1783059039000,-200.0,0.0002323,2]
[426955422,1783059039000,-151.0,0.00023198,2]
[426955421,1783059039000,-151.0,0.00023198,2]
[426955420,1783059039000,-151.0,0.00023198,2]
[426955425,1783059039000,-910.51515761,0.00023227,2]
[426955400,1783059039000,-394.41,0.00022672,2]
[426955413,1783059039000,-151.0,0.00023,2]
[426955397,1783059039000,-252.45,0.00022466,2]
[426955370,1783059039000,-500.0,0.00021817,2]
[426955396,1783059039000,-2947.03872378,0.00022268,2]
[426955364,1783059039000,-500.0,0.00021817,2]
[426955366,1783059039000,-487.03054447,0.00021817,2]
[426955367,1783059039000,-500.0,0.00021817,2]
[426955365,1783059039000,-500.0,0.00021817,2]
[426955374,1783059039000,-500.0,0.00021817,2]